bitfinex/quotes_ETHUSD_20240926
["timestamp","ask_amount","ask_price","bid_price","bid_amount"]
[1727366770793,0.7884,2652.8,2652.4,3.77008]
[1727366771575,3.76977,2652.7,2652.3,1.186576]
[1727366772009,4.55802,2652.8,2652.4,3.77015]
[1727366772208,3.76936,2653.0,2652.4,4.36363113]
[1727366772516,4.60137,2653.2,2652.7,7.53941]
[1727366772666,3.7694,2653.0,2652.4,4.36351113]
[1727366772870,3.7694,2653.0,2652.5,3.76996]
[1727366773218,0.8323,2653.2,2652.7,0.7635]
[1727366773372,0.8323,2653.2,2652.8,3.76946]
[1727366773914,3.76876,2653.4,2653.0,3.76931]
[1727366774127,3.76876,2653.4,2653.0,4.523187]
[1727366775201,3.76855,2653.6,2653.0,8.292427]
[1727366775404,4.5393,2653.7,2653.1,0.88907502]
[1727366775593,3.76854,2653.6,2653.1,4.65823502]
[1727366775801,0.7709,2653.7,2653.1,1.6564475]
[1727366776095,4.53922,2653.7,2653.2,3.8443828]
[1727366776296,3.76826,2653.8,2653.3,3.76882]
[1727366776509,3.76826,2653.8,2653.2,3.76901]
[1727366776510,3.76826,2653.8,2653.4,0.753783]
[1727366776919,3.76826,2653.8,2653.2,3.76893]
[1727366776920,3.76842,2653.7,2653.2,3.76893]
[1727366777778,3.76826,2653.8,2653.3,3.76885]
[1727366777981,0.0382426,2654.2,2652.8,3.76956]
[1727366777982,0.8306426,2654.2,2653.6,0.7721]
[1727366778219,0.0382426,2654.2,2653.7,0.0753581]
[1727366778387,0.0382426,2654.2,2654.1,4.53985]
[1727366778904,0.0382426,2654.2,2654.1,0.7721]
[1727366779113,0.0382426,2654.2,2654.1,4.53985]
[1727366779679,0.0382426,2654.2,2654.1,0.7721]
[1727366779896,0.0382426,2654.2,2654.1,1.602871]
[1727366780627,0.0382426,2654.2,2654.1,0.830771]
[1727366780832,0.0382426,2654.2,2653.9,0.7923]
[1727366781189,3.8058926,2654.2,2653.7,1.30348845]
[1727366782326,0.0382426,2654.2,2653.7,5.07171845]
[1727366782551,3.8058626,2654.2,2653.7,1.30348845]
[1727366782759,0.0382426,2654.2,2653.8,3.7681]
[1727366782938,0.0382426,2654.2,2653.8,4.65206585]
[1727366783844,0.0382426,2654.2,2653.9,3.76803]
[1727366784152,0.0382426,2654.2,2653.8,4.65206585]
[1727366784365,0.0382426,2654.2,2653.8,8.42016585]
[1727366784672,0.0382426,2654.2,2653.8,4.65206585]
[1727366784969,0.0382426,2654.2,2653.9,0.54443658]
[1727366785366,0.0382426,2654.2,2653.9,4.31246658]
[1727366785533,0.0382426,2654.2,2654.1,3.76775]
[1727366785899,0.0382426,2654.2,2654.1,8.06351343]
[1727366786070,0.0382426,2654.2,2654.1,7.98816678]
[1727366786290,0.0382426,2654.2,2654.1,9.21821512]
[1727366786985,0.0382426,2655.0,2654.2,3.0]
[1727366787272,4.53439,2654.7,2654.2,4.57092]
[1727366787487,4.53439,2654.7,2654.3,0.55000879]
[1727366787635,0.7674,2654.7,2654.3,0.55000879]
[1727366787836,0.7674,2654.7,2654.3,4.31744879]
[1727366788144,0.7674,2654.7,2654.3,0.55000879]
[1727366788337,0.7674,2654.7,2654.4,4.65615388]
[1727366788537,3.8048526,2655.0,2654.5,3.84243792]
[1727366788538,0.8671426,2655.0,2654.5,3.84243792]
[1727366788863,4.6336326,2655.0,2654.6,0.47312818]
[1727366789154,4.6336326,2655.0,2654.7,3.76679]
[1727366789155,0.0382426,2655.0,2654.7,3.76679]
[1727366789357,3.76663,2654.9,2654.6,0.47312818]
[1727366789568,0.0382426,2655.0,2654.5,3.76709]
[1727366789824,0.0382426,2655.0,2654.6,3.76704]
[1727366790125,0.0382426,2655.0,2654.5,3.76709]
[1727366790300,0.0382426,2655.0,2654.5,7.53419]
[1727366790616,0.0382426,2655.0,2654.6,4.65822325]
[1727366790779,4.58194,2655.1,2654.8,3.76676]
[1727366790780,0.73500899,2655.1,2654.8,3.76676]
[1727366791111,0.73500899,2655.1,2654.6,0.89121325]
[1727366791112,4.50134899,2655.1,2654.6,0.89121325]
[1727366791316,4.50134899,2655.1,2654.6,3.76702]
[1727366792299,4.50134899,2655.1,2654.6,3.76696]
[1727366793292,3.7665,2655.0,2654.4,4.53969]
[1727366793613,3.76669,2654.9,2654.5,0.453969]
[1727366793824,3.76669,2654.9,2654.4,3.76729]
[1727366793985,3.7665,2655.0,2654.4,3.76729]
[1727366794182,3.7665,2655.0,2654.5,3.76718]
[1727366794994,3.7665,2655.0,2654.6,3.76703]
[1727366795424,3.7665,2655.0,2654.5,7.53426]
[1727366795621,3.7665,2655.0,2654.5,4.15133174]
[1727366795925,7.53308,2655.0,2654.5,4.15133174]
[1727366796096,3.7665,2655.0,2654.5,4.15133174]
[1727366796283,0.73500899,2655.1,2654.7,3.76682]
[1727366796983,3.766,2655.4,2654.7,4.59179]
[1727366796984,0.7937,2655.4,2654.7,4.59179]
[1727366797214,3.76605,2655.3,2654.7,3.76679]
[1727366797530,3.76622,2655.2,2654.7,4.73992848]
[1727366798240,3.76622,2655.2,2654.7,0.97313848]
[1727366798241,3.76634,2655.1,2654.7,0.97313848]
[1727366798717,3.76662,2654.9,2654.5,3.76709]
[1727366798925,4.54193,2655.0,2654.5,3.76709]
[1727366799130,4.54193,2655.0,2654.5,4.602185]
[1727366799447,3.76663,2654.9,2654.5,4.602185]
[1727366799943,0.7754,2655.0,2653.9,7.38]
[1727366799944,3.76699,2654.7,2654.2,7.53503]
[1727366800118,3.76699,2654.7,2654.2,3.76749]
[1727366800523,0.7843,2654.8,2654.4,3.76723]
[1727366800723,0.7843,2654.8,2654.5,3.76718]
[1727366800961,0.7843,2654.8,2654.4,0.753458]
[1727366801146,0.7843,2654.8,2654.4,4.520748]
[1727366801655,0.7843,2654.8,2654.4,0.753458]
[1727366801858,3.76691,2654.7,2654.2,3.7676]
[1727366802165,3.76691,2654.7,2654.3,3.76745]
[1727366802341,4.55106,2654.8,2654.3,3.76745]
[1727366802507,3.76691,2654.7,2654.3,3.76745]
[1727366802846,3.76691,2654.7,2654.3,4.520962]
[1727366803045,4.55111,2654.8,2654.3,0.753512]
[1727366803260,4.55111,2654.8,2654.4,3.76731]
[1727366803413,0.7843,2654.8,2654.4,3.76731]
[1727366803609,0.7843,2654.8,2654.4,4.3024922]
[1727366804346,0.7843,2654.8,2654.4,4.3024322]
[1727366804548,3.76649,2655.0,2654.6,3.76695]
[1727366804549,0.7937,2655.0,2654.6,3.76695]
[1727366804796,0.7937,2655.0,2654.4,3.99539898]
[1727366804981,0.7937,2655.2,2654.9,3.76658]
[1727366806063,0.7937,2655.2,2654.5,4.1666099]
[1727366806405,3.76661,2655.0,2654.5,4.1666099]
[1727366806561,3.76661,2655.0,2654.6,3.76703]
[1727366806756,3.76636,2655.1,2654.6,3.76703]
[1727366806989,3.76654,2655.0,2654.6,0.84533503]
[1727366807497,7.53283,2655.1,2654.6,4.61226503]
[1727366807704,3.76649,2655.0,2654.6,4.61226503]
[1727366807885,3.76664,2654.9,2654.6,0.84533503]
[1727366808062,0.7937,2655.2,2654.6,0.84533503]
[1727366808260,3.76634,2655.1,2654.6,4.61230503]
[1727366808511,0.7937,2655.2,2654.8,3.76675]
[1727366808714,0.7937,2655.2,2655.0,3.76646]
[1727366809073,3.76601,2655.4,2655.0,3.76646]
[1727366809371,0.7525,2655.7,2655.2,3.46021678]
[1727366809576,0.7525,2655.7,2655.0,8.06315478]
[1727366809884,0.7525,2655.7,2655.2,3.76607]
[1727366810270,0.0382426,2655.8,2655.2,3.46021678]
[1727366810474,0.0382426,2655.8,2655.6,3.76561]
[1727366810791,0.0382426,2655.8,2655.7,3.76548]
[1727366811612,0.0382426,2655.8,2655.5,4.18697168]
[1727366811814,0.0382426,2655.8,2655.5,0.42124168]
[1727366811978,0.7646,2655.7,2655.5,0.42124168]
[1727366812673,0.0382426,2655.8,2655.5,4.18699168]
[1727366812874,0.0382426,2655.8,2655.6,0.41869917]
[1727366813521,0.0382426,2655.8,2655.6,3.76552]
[1727366814406,0.0382426,2655.8,2655.6,7.53105]
[1727366814720,0.0382426,2655.8,2655.6,7.53104]
[1727366815394,0.0382426,2655.8,2655.6,3.76561]
[1727366815587,0.0382426,2655.8,2655.6,3.7655]
[1727366815788,0.0382426,2655.8,2655.7,0.37655]
[1727366816006,0.0382426,2655.8,2655.3,0.7522]
[1727366816406,0.0382426,2655.8,2655.3,0.8275114]
[1727366816633,0.0382426,2655.8,2655.7,3.76548]
[1727366816793,0.0382426,2655.8,2655.3,0.7522]
[1727366816794,0.0382426,2655.8,2655.4,7.22606678]
[1727366816992,0.0382426,2655.8,2655.4,3.76582]
[1727366817245,0.0382426,2655.8,2655.5,0.451802]
[1727366817393,0.7873,2655.7,2655.3,0.7522]
[1727366817589,0.7873,2655.7,2655.3,4.51818]
[1727366817899,0.7873,2655.7,2655.3,0.7522]
[1727366818103,0.7873,2655.7,2655.0,17.58663678]
[1727366818104,0.7873,2655.7,2655.0,3.76644]
[1727366818300,3.76563,2655.6,2655.0,3.76639]
[1727366818704,3.76563,2655.6,2655.0,3.76637]
[1727366818905,3.76604,2655.4,2654.8,11.10669]
[1727366819195,0.8258,2655.3,2654.9,3.76657]
[1727366819520,0.8258,2655.3,2655.0,3.76646]
[1727366819695,0.8258,2655.3,2655.0,3.76639]
[1727366820035,0.7955,2655.5,2655.0,7.22660678]
[1727366820332,4.6137526,2655.8,2655.2,3.76618]
[1727366820489,4.6137526,2655.8,2655.3,3.76597]
[1727366820693,4.6137526,2655.8,2655.2,4.57888]
[1727366821005,4.6137526,2655.8,2655.1,0.72819521]
[1727366821331,4.6137526,2655.8,2655.2,3.76619]
[1727366821332,3.76548,2655.7,2655.2,3.76619]
[1727366821491,8.3792226,2655.8,2655.2,4.67516853]
[1727366821695,4.6137526,2655.8,2655.2,4.67516853]
[1727366821928,3.76563,2655.6,2655.0,4.52008]
[1727366822235,7.53134,2655.6,2655.0,3.76638]
[1727366822392,7.53133,2655.6,2655.0,3.76638]
[1727366822592,3.76563,2655.6,2655.0,4.94814968]
[1727366822832,3.76563,2655.6,2655.0,8.71452968]
[1727366823034,3.76563,2655.6,2655.0,4.94814968]
[1727366823190,3.76577,2655.5,2655.0,4.94814968]
[1727366823396,4.54111,2655.4,2654.9,3.75654]
[1727366823627,0.7752,2655.4,2654.8,3.76668]
[1727366823961,4.54112,2655.4,2654.9,3.76661]
[1727366824360,0.7752,2655.4,2655.0,3.76646]
[1727366824565,0.8247,2655.7,2655.5,3.76564]
[1727366824730,0.8247,2655.7,2655.3,7.53194]
[1727366824930,0.8247,2655.7,2655.3,4.28371648]
[1727366825165,0.8247,2655.7,2655.4,3.76588]
[1727366825468,0.8247,2655.7,2655.3,3.76597]
[1727366825669,0.8247,2655.7,2655.3,3.76596]
[1727366825970,0.8247,2655.7,2655.4,3.76581]
[1727366826350,0.0382426,2655.8,2655.4,5.06794158]
[1727366826586,0.0382426,2655.8,2655.4,4.23191678]
[1727366826747,0.0382426,2655.8,2655.7,3.76548]
[1727366830250,0.0382426,2655.8,2655.7,3.84077893]
[1727366830459,0.0382426,2655.8,2655.7,7.66157758]
[1727366830671,0.0382426,2655.8,2655.7,8.98445374]
[1727366830969,0.0382426,2655.8,2655.7,8.90915616]
[1727366831838,0.0382426,2656.6,2655.7,8.90915616]
[1727366831839,0.0382426,2656.6,2656.3,7.22472678]
[1727366832035,0.0382426,2656.6,2656.5,7.22456678]
[1727366832257,0.0382426,2656.6,2656.5,8.43564775]
[1727366832984,0.0382426,2656.6,2656.5,11.43564775]
[1727366834505,0.0382426,2657.4,2656.5,11.43564775]
[1727366834506,0.0382426,2657.4,2657.3,3.76321]
[1727366834646,0.0382426,2657.4,2657.3,7.22342678]
[1727366834842,0.0382426,2657.4,2657.3,7.54801]
[1727366835043,0.0382426,2657.4,2657.3,5.08608616]
[1727366838097,0.0382426,2657.4,2657.3,8.08608616]
[1727366838267,0.0382426,2657.4,2657.3,8.88178616]
[1727366839598,0.0382426,2657.4,2657.3,5.88178616]
[1727366840680,0.0382426,2657.4,2657.3,1.32287616]
[1727366840996,0.0382426,2657.4,2657.3,3.76321]
[1727366841506,0.0382426,2657.4,2657.3,6.76321]
[1727366841675,0.0382426,2657.4,2657.3,7.57701]
[1727366843013,0.0382426,2657.4,2657.3,7.65225473]
[1727366843299,0.0382426,2657.4,2657.3,7.57701]
[1727366843594,8.14848149,2657.7,2657.6,7.57989]
[1727366847495,7.92567144,2657.7,2657.6,7.57989]
[1727366850716,5.32993208,2657.7,2657.6,7.57989]
[1727366851044,5.32993208,2657.7,2657.6,7.95779]
[1727366851645,5.32993208,2657.7,2657.6,7.57989]
[1727366851954,5.01184612,2657.7,2657.6,7.95779]
[1727366852159,2.14613099,2657.7,2657.6,7.95779]
[1727366852302,1.57410021,2657.7,2657.6,8.48552121]
[1727366852735,0.2,2659.5,2658.3,3.0]
[1727366852936,0.2,2659.5,2658.9,6.76095]
[1727366854434,0.2,2659.5,2658.8,4.54369]
[1727366854435,5.07098458,2659.4,2658.8,3.76108]
[1727366854631,5.07098458,2659.4,2658.9,3.0]
[1727366854941,5.07098458,2659.4,2659.0,3.76079]
[1727366854942,0.0129093,2659.3,2659.0,3.76079]
[1727366855335,0.0129093,2659.3,2659.1,3.76062]
[1727366856049,0.0129093,2659.3,2659.2,3.76052]
[1727366856952,0.0129093,2659.3,2659.2,6.76052]
[1727366857119,0.0129093,2659.3,2659.2,6.83570829]
[1727366857507,0.0129093,2659.3,2659.2,6.76052]
[1727366859064,0.2,2659.5,2659.3,3.0]
[1727366859209,0.2,2659.5,2659.4,6.76024]
[1727366859640,0.2,2659.5,2659.4,3.0]
[1727366859911,0.2,2659.5,2659.3,3.76038]
[1727366861045,0.2,2659.5,2659.3,3.76029]
[1727366861245,0.2,2659.5,2659.3,7.52058]
[1727366861411,0.2,2659.5,2659.4,3.76024]
[1727366862545,0.2,2659.5,2659.4,7.52514]
[1727366863247,0.0407113,2660.1,2660.0,3.75939]
[1727366863946,0.0407113,2660.1,2659.9,3.75944]
[1727366864333,0.0407113,2660.1,2659.9,7.51888]
[1727366864559,0.0407113,2660.1,2660.0,3.75939]
[1727366864739,0.0407113,2660.1,2659.8,3.0]
[1727366864955,0.0407113,2660.1,2660.0,3.75939]
[1727366865854,0.0407113,2660.1,2659.8,3.0]
[1727366866049,0.0407113,2660.1,2659.8,6.75968]
[1727366866552,0.0407113,2660.1,2659.8,3.0]
[1727366866852,0.0407113,2660.1,2659.9,3.75952]
[1727366867026,0.0407113,2660.1,2659.8,3.0]
[1727366867375,0.0407113,2660.1,2659.8,6.75967]
[1727366867514,0.0407113,2660.1,2659.9,3.7594]
[1727366867715,0.0407113,2660.1,2659.8,6.75967]
[1727366867914,0.8013,2660.0,2659.3,7.34]
[1727366868249,0.8013,2660.0,2659.6,3.75987]
[1727366868548,0.8013,2660.0,2659.6,7.51975]
[1727366868755,0.0407113,2660.1,2659.8,3.75959]
[1727366869049,0.0407113,2660.1,2659.6,3.75985]
[1727366869714,0.0407113,2660.1,2659.7,0.07518258]
[1727366869925,0.0407113,2660.1,2659.9,3.75952]
[1727366870126,0.0407113,2660.1,2659.9,3.75944]
[1727366870350,0.0407113,2660.1,2660.0,3.75939]
[1727366870742,0.0407113,2660.1,2659.9,3.75944]
[1727366871327,0.7512,2660.0,2659.6,3.0]
[1727366871744,3.72590041,2660.0,2659.0,0.8108]
[1727366871963,0.0407113,2660.1,2659.1,3.76059]
[1727366871964,3.8000113,2660.1,2659.1,3.76059]
[1727366872120,3.75954,2659.9,2659.1,3.76058]
[1727366872460,3.75954,2659.9,2659.2,3.76043]
[1727366873722,3.75975,2659.8,2659.2,3.0]
[1727366874158,3.75954,2659.9,2659.2,3.0]
[1727366874721,0.7657,2659.8,2659.2,3.0]
[1727366875121,4.52539,2659.8,2659.2,3.0]
[1727366875331,3.75982,2659.7,2659.1,3.0]
[1727366875735,4.52539,2659.8,2659.1,6.76064]
[1727366876666,0.8267,2659.3,2658.6,0.7814]
[1727366876852,4.24848458,2659.9,2658.6,0.7814]
[1727366877164,3.75852,2660.7,2659.0,3.76073]
[1727366877165,3.75947,2660.0,2659.0,3.76073]
[1727366877330,3.75959,2659.9,2659.1,3.76057]
[1727366877765,3.75947,2660.0,2659.1,7.52113]
[1727366877969,3.75947,2660.0,2659.2,3.76052]
[1727366878131,3.75962,2659.9,2659.1,3.76056]
[1727366878524,3.75947,2660.0,2659.2,3.76045]
[1727366878737,3.75956,2659.9,2659.1,8.33094]
[1727366878939,3.75956,2659.9,2659.1,4.57036]
[1727366879271,3.75969,2659.8,2659.1,4.57036]
[1727366879880,3.75969,2659.8,2658.4,4.13952]
[1727366879881,0.7824,2660.0,2659.0,0.8098]
[1727366880096,3.75975,2659.8,2659.0,4.57049]
[1727366880499,4.54187,2660.0,2659.0,4.57049]
[1727366880500,0.7824,2660.0,2659.3,3.76038]
[1727366880700,3.75968,2659.8,2659.1,3.76057]
[1727366880882,4.5418,2660.0,2659.1,3.76057]
[1727366881086,0.7824,2660.0,2659.0,0.8098]
[1727366881318,0.7824,2660.0,2659.1,3.76056]
[1727366881605,0.7824,2660.0,2659.2,6.76049]
[1727366882113,0.0407113,2660.1,2659.6,4.53656]
[1727366882575,0.0407113,2660.1,2659.7,3.75981]
[1727366882774,0.0407113,2660.1,2659.4,3.76014]
[1727366883087,0.7967,2660.0,2659.4,3.76014]
[1727366883811,4.55611,2660.0,2659.3,3.7603]
[1727366884108,8.00151176,2660.0,2659.2,7.57252]
[1727366884310,8.00151176,2660.0,2659.2,6.76042]
[1727366884311,4.56391,2659.9,2659.2,6.76042]
[1727366885088,0.8043,2659.9,2659.2,6.76042]
[1727366885422,0.8043,2659.9,2659.2,3.0]
[1727366885721,0.8043,2659.9,2659.5,3.76003]
[1727366885897,0.8043,2659.9,2659.5,7.52007]
[1727366886097,0.8043,2659.9,2659.5,3.76003]
[1727366886582,0.8043,2659.9,2659.4,0.831]
[1727366886787,0.8043,2659.9,2659.4,4.5912]
[1727366887004,0.8043,2659.9,2659.5,3.76008]
[1727366887287,0.8043,2659.9,2659.2,6.76052]
[1727366887288,4.56391,2659.9,2659.2,6.76052]
[1727366887608,4.56391,2659.9,2659.2,3.0]
[1727366887909,3.75983,2659.7,2659.1,3.7606]
[1727366888674,3.75972,2659.8,2659.1,3.76059]
[1727366888975,3.75972,2659.8,2658.7,3.76121]
[1727366888976,0.8236,2659.3,2658.5,0.7702]
[1727366889308,0.8236,2659.3,2658.3,0.76674699]
[1727366889309,0.8236,2658.9,2658.1,0.7702]
[1727366889489,0.8236,2658.9,2658.1,4.53226]
[1727366889817,0.8236,2658.9,2658.3,3.76171]
[1727366890013,0.7901,2659.2,2658.7,3.76114]
[1727366890215,0.7901,2659.2,2658.8,3.83624777]
[1727366890421,0.7901,2659.2,2658.7,3.76119]
[1727366890722,0.7901,2659.2,2658.4,3.76157]
[1727366891090,4.24247849,2659.5,2658.1,4.53145]
[1727366891091,3.76104,2658.9,2658.1,4.53145]
[1727366891619,0.795,2659.0,2658.3,3.76179]
[1727366891781,0.795,2659.0,2658.1,8.29345]
[1727366891978,0.795,2659.0,2658.2,3.0]
[1727366892186,0.795,2659.0,2658.4,3.0]
[1727366892893,0.795,2659.0,2658.4,10.52314]
[1727366893091,0.795,2659.0,2658.4,6.76156]
[1727366893478,0.795,2659.0,2658.4,3.0]
[1727366893681,4.55581,2659.0,2658.3,6.76177]
[1727366893911,0.795,2659.0,2658.3,6.76177]
[1727366895179,0.795,2659.0,2658.4,3.76161]
[1727366895625,0.795,2659.0,2658.3,3.0]
[1727366895917,4.55585,2659.0,2658.3,6.76176]
[1727366896082,0.795,2659.0,2658.4,3.76163]
[1727366896281,0.795,2659.0,2658.2,3.76184]
[1727366896282,3.76124,2658.7,2658.1,0.7694]
[1727366896526,0.7925,2658.6,2658.0,3.76212]
[1727366897021,0.7925,2658.6,2657.9,0.7915]
[1727366897022,0.7925,2658.6,2658.2,3.76191]
[1727366897335,0.7925,2658.9,2658.5,3.76143]
[1727366897620,0.7925,2658.9,2658.6,0.07521817]
[1727366897983,0.7925,2658.9,2658.3,0.7915]
[1727366898233,3.0,2659.7,2658.9,3.76086]
[1727366898234,0.7925,2659.3,2658.9,3.76086]
[1727366898802,0.7925,2659.3,2658.5,6.76141]
[1727366899086,4.55299,2659.3,2658.7,3.0]
[1727366899413,3.76055,2659.2,2658.7,3.0]
[1727366899592,3.76055,2659.2,2658.6,3.0]
[1727366899792,0.7925,2659.3,2658.6,3.0]
[1727366899793,0.7925,2659.3,2658.6,6.76137]
[1727366899991,0.7925,2659.3,2658.3,0.7915]
[1727366899992,3.7606,2659.2,2658.3,0.7915]
[1727366900193,3.76074,2659.1,2658.4,3.0]
[1727366900397,0.7944,2659.0,2658.4,3.0]
[1727366900823,0.7944,2659.0,2658.5,3.76141]
[1727366901539,0.7944,2659.0,2658.5,7.52284]
[1727366901833,0.7944,2659.0,2658.4,3.0]
[1727366902141,0.7944,2659.0,2658.5,3.76151]
[1727366903011,0.7944,2659.0,2658.6,4.61017293]
[1727366903255,0.7944,2659.0,2658.6,3.83657293]
[1727366903628,3.76019,2659.5,2658.7,3.76123]
[1727366903957,0.8108,2659.4,2658.4,3.0]
[1727366904110,0.8108,2659.1,2658.6,6.76136]
[1727366904314,0.8108,2659.1,2658.5,3.76148]
[1727366904750,0.8108,2659.1,2658.3,7.5353]
[1727366904751,0.8108,2659.1,2658.3,7.53531]
[1727366905054,4.57155,2659.1,2658.5,3.76148]
[1727366906126,4.56236,2658.8,2658.1,3.76199]
[1727366906353,3.45048085,2658.6,2658.1,3.76199]
[1727366907261,0.8012,2658.8,2658.3,3.76178]
[1727366907430,0.8012,2658.8,2658.1,3.76199]
[1727366907431,7.21174085,2658.7,2658.1,3.76199]
[1727366907819,3.45048085,2658.7,2658.1,3.76199]
[1727366908018,7.21173085,2658.7,2658.1,3.76197]
[1727366908218,3.76196,2658.2,2657.6,4.54371]
[1727366908475,0.7997,2658.1,2657.5,3.76282]
[1727366908615,0.7997,2658.1,2657.3,4.57181]
[1727366908616,3.76223,2658.0,2657.3,4.57181]
[1727366908962,3.76223,2658.0,2657.4,3.763]
[1727366909117,0.7997,2658.1,2657.3,4.57181]
[1727366909321,0.7997,2658.1,2657.7,3.76264]
[1727366909747,0.7997,2658.1,2657.6,0.07524316]
[1727366909948,0.7997,2658.1,2657.0,3.76357]
[1727366909949,3.76366,2657.0,2656.8,0.0407113]
[1727366910195,4.24824303,2657.9,2655.9,0.0407113]
[1727366910196,3.76418,2656.7,2655.9,0.0407113]
[1727366910397,3.76442,2656.5,2655.9,0.0407113]
[1727366910564,8.72889988,2657.3,2655.9,0.0407113]
[1727366910565,4.24824303,2656.9,2655.9,0.0407113]
[1727366910764,3.76433,2656.6,2655.9,0.0407113]
[1727366911068,3.76435,2656.5,2655.9,0.0407113]
[1727366911398,0.8331,2656.4,2655.9,0.0407113]
[1727366912709,3.76471,2656.3,2655.9,0.0407113]
[1727366913687,3.76482,2656.2,2655.9,0.0407113]
[1727366913998,0.8331,2656.4,2655.9,0.0407113]
[1727366914366,4.59759,2656.4,2655.9,0.0407113]
[1727366914800,0.8331,2656.4,2655.9,0.0407113]
[1727366915115,4.5976,2656.4,2655.9,0.0407113]
[1727366915266,4.52666,2656.0,2655.9,0.0407113]
[1727366915475,4.6208003,2656.0,2655.9,0.0425662]
[1727366915777,4.6208003,2656.0,2655.1,0.0384886]
[1727366915778,3.0,2655.9,2655.1,0.0384886]
[1727366915976,4.54609,2655.2,2655.1,0.0384886]
[1727366916363,0.7799,2655.2,2655.1,0.0384886]
[1727366916566,4.54609,2655.2,2655.1,0.0384886]
[1727366916975,4.64024707,2655.2,2655.1,0.0384886]
[1727366917174,5.02814303,2655.2,2655.1,0.0384886]
[1727366917380,0.98592046,2655.8,2655.1,0.0384886]
[1727366917381,8.83118303,2655.5,2655.1,0.0384886]
[1727366918918,3.76596,2655.4,2655.1,0.0384886]
[1727366919941,7.53195,2655.4,2655.1,0.0384886]
[1727366920101,3.76596,2655.4,2655.1,0.0384886]
[1727366920952,5.06534303,2655.5,2655.1,0.0384886]
[1727366920953,0.8171,2655.5,2655.1,0.0384886]
[1727366922025,0.7554,2655.9,2655.1,0.0384886]
[1727366922227,5.00364303,2655.7,2655.1,0.0384886]
[1727366922544,3.85982787,2655.6,2655.1,0.0384886]
[1727366922743,7.62553787,2655.6,2655.1,0.0384886]
[1727366923065,3.76568,2655.6,2655.1,0.0384886]
[1727366923234,7.5314,2655.6,2655.1,0.0384886]
[1727366923437,3.76588,2655.5,2655.1,0.0384886]
[1727366923757,3.76619,2655.2,2655.1,0.0384886]
[1727366924879,7.62615816,2655.4,2655.1,0.0384886]
[1727366925102,3.766,2655.4,2655.1,0.0384886]
[1727366925235,0.7554,2655.7,2655.1,0.0384886]
[1727366925437,0.7554,2655.7,2655.3,3.76597]
[1727366925632,0.7554,2655.7,2655.3,7.53194]
[1727366925960,0.7554,2655.7,2655.1,0.0384886]
[1727366926182,3.76587,2655.5,2655.1,0.0384886]
[1727366926854,5.0212943,2655.7,2655.1,0.0384886]
[1727366927445,4.52093,2655.7,2655.1,3.8047986]
[1727366929480,3.76538,2655.8,2655.1,3.8047386]
[1727366929772,8.78010303,2656.0,2655.4,3.7659]
[1727366929972,3.7652,2655.9,2655.2,3.76614]
[1727366930126,8.78000303,2656.0,2655.4,3.76584]
[1727366930331,0.7667,2656.0,2655.5,3.76576]
[1727366930531,0.8059,2656.3,2655.8,3.76532]
[1727366930726,0.8059,2656.3,2655.9,0.07529536]
[1727366930969,4.52261,2656.6,2656.0,3.76497]
[1727366931156,0.7583,2656.6,2656.0,3.76497]
[1727366931360,0.7583,2656.6,2656.0,3.76494]
[1727366931529,3.76457,2656.4,2655.9,3.0]
[1727366931842,3.76457,2656.4,2655.6,3.76555]
[1727366931843,3.76473,2656.3,2655.7,3.0]
[1727366932047,3.76457,2656.4,2655.7,6.76547]
[1727366932249,7.52915,2656.4,2655.7,6.76548]
[1727366932449,3.76464,2656.3,2655.7,6.76548]
[1727366932647,3.76501,2656.1,2655.2,7.53217]
[1727366932864,3.76501,2656.1,2655.3,3.0]
[1727366933168,3.76501,2656.1,2655.4,3.76581]
[1727366933532,0.7514,2656.2,2655.6,3.76558]
[1727366933729,3.76514,2656.0,2655.3,3.0]
[1727366934471,4.51625,2656.2,2655.4,3.7658]
[1727366934672,0.7514,2656.2,2655.4,3.7658]
[1727366934974,3.76515,2656.0,2655.4,3.7658]
[1727366935573,3.76521,2655.9,2655.3,3.0]
[1727366935779,0.7514,2656.2,2655.1,0.8186886]
[1727366936079,0.7514,2656.2,2655.3,3.76596]
[1727366936238,3.76515,2656.0,2655.3,3.76596]
[1727366936648,3.76499,2656.1,2655.4,3.7659]
[1727366936943,0.7514,2656.2,2655.6,3.76555]
[1727366937140,0.7514,2656.2,2655.6,3.76553]
[1727366937345,0.7514,2656.2,2655.6,7.53105]
[1727366937582,0.7514,2656.2,2655.6,3.76552]
[1727366938171,0.7514,2656.2,2655.6,7.53105]
[1727366938480,0.7514,2656.2,2655.7,3.76548]
[1727366938890,0.7514,2656.2,2655.6,3.76552]
[1727366939183,0.7514,2656.2,2655.4,3.0]
[1727366939406,3.76492,2656.1,2655.4,3.76578]
[1727366940304,3.76445,2656.5,2655.7,3.76547]
[1727366940444,0.8324,2656.5,2655.5,3.76572]
[1727366940783,4.59687,2656.5,2655.8,3.76525]
[1727366940946,3.76451,2656.4,2655.8,3.76525]
[1727366941148,0.8324,2656.5,2656.0,3.76503]
[1727366941581,0.8324,2656.5,2656.2,3.76475]
[1727366941783,3.76373,2657.0,2656.2,3.76475]
[1727366942001,3.76395,2656.8,2656.2,3.76475]
[1727366942145,7.52752,2657.0,2656.3,3.76454]
[1727366942344,5.0621891,2657.0,2656.3,3.76454]
[1727366942547,3.76401,2656.8,2656.2,3.76475]
[1727366942768,3.76463,2656.3,2655.8,3.76526]
[1727366943055,4.24824303,2656.5,2655.1,3.8047486]
[1727366943056,3.76556,2655.7,2655.1,3.8047486]
[1727366943246,0.89034294,2655.8,2655.1,3.8047486]
[1727366943493,3.76548,2655.7,2655.1,3.8047486]
[1727366943790,0.7962,2655.8,2655.3,3.76592]
[1727366943994,0.7962,2655.8,2655.3,3.76596]